Cogmind - Beta 16.1 @@@ ROGUE MODE // 2026.04.20 @ 16:14:47 Player: obl-vn Result: Self-destructed Performance ------------- Evolutions (4) 2000 Regions Visited (15) 3000 Robots Destroyed (200) 1000 Value Destroyed (4716) 4716 Prototype IDs (49) 980 Alien Tech Used (1) 200 Bonus (-779) -779 TOTAL SCORE: 11117 Bonus ------- Follower Combat Kills 53 Aligned with FarCom 300 Met Data Miner 300 Friendly Fire -1432 Cogmind --------- Core Integrity 659/850 Matter 9/300 Energy 100/100 System Corruption 11% Temperature Cool (0) Movement Treading (400) Ox3 Location -6/Zion Parts ------- > --- POWER (2) -------- (None) > --- PROPULSION (6) --- Medium Treads > --- UTILITY (6) ------ Huge Storage Unit Advanced Signal Interpreter Experimental Core Analyzer Experimental Armor Integrity Analyzer > --- WEAPON (2) ------- 8R-AWN's Boregun 8R-AWN's Boregun > --- INVENTORY (25) --- Light Angular Momentum Engine Fission Core Combat Airjet Combat Antigrav System Experimental Heat Sink Improved Cooling System Matter Compressor (0) Gravity Neutralizer Improved Sensor Array Makeshift Sensor Array Advanced Weapon Cycler Advanced Transmission Jammer Hardened Heavy Armor Plating Improved Hardlight Generator Advanced Component Analysis Suite Force Rifle Force Rifle Heavy Plasma Cannon Heavy Missile Launcher Long-range Missile Launcher CR-A16's Pointy Stick Peak State ------------ > --- POWER ------------ Light Angular Momentum Engine Fission Core > --- PROPULSION ------- Light Treads Light Treads Improved Treads Armored Treads Medium Treads Medium Treads > --- UTILITY ---------- Huge Storage Unit Improved Sensor Array Advanced Signal Interpreter Improved Heavy Armor Plating Advanced Component Analysis Suite > --- WEAPON ----------- 8R-AWN's Boregun 8R-AWN's Boregun > --- INVENTORY -------- Light Angular Momentum Engine Fission Core Combat Airjet Combat Antigrav System Experimental Heat Sink Improved Cooling System Matter Compressor Gravity Neutralizer Experimental Core Analyzer Experimental Armor Integrity Analyzer Advanced Weapon Cycler Advanced Transmission Jammer Improved Weapon Shielding Hardened Heavy Armor Plating Improved Hardlight Generator Shield Generator Force Rifle Force Rifle Heavy Plasma Cannon Heavy Missile Launcher Long-range Missile Launcher CR-A16's Pointy Stick [Rating: 84] Favorites ----------- Power Fission Core Engine Ion Engine Power Core Fission Core Propulsion Light Treads Treads Light Treads Leg Improved Titanium Leg Wheel Wheel Utility Huge Storage Unit Device Improved Sensor Array Storage Huge Storage Unit Processor Improved Signal Interpreter Protection Improved Light Armor Plating Weapon Heavy Plasma Cannon Energy Gun Force Rifle Energy Cannon Heavy Plasma Cannon Ballistic Gun Minigun Ballistic Cannon Flak Cannon Launcher Mini Grenade Launcher Slashing Weapon Longsword +1 Special Melee Weapon Datajack Build | -11 -10 -10 -9 -9 -9 -8 -8 -7 -7 -7 -7 -6 -6 -6 -6 ------- Run | Yrd Mat Min Mat Min Exi Min Mat Fac Low Low Dat Pro Fac Low Zio Slots Evolved 8 | . . . 2 . . . 2 2 . . . . 2 . . Power 1 | . . . . . . . . . . . . . 1 . . Propulsion 3 | . . . 1 . . . 1 . . . . . 1 . . Utility 4 | . . . 1 . . . 1 2 . . . . . . . Weapon . | . . . . . . . . . . . . . . . . Parts Attached 113 | 6 7 . 12 3 17 . 10 16 11 5 . 3 16 1 6 Power 16 | 1 1 . 2 . 1 . 2 2 1 . . 1 3 1 1 Engine 10 | 1 1 . 2 . . . 2 1 . . . 1 . 1 1 Core 6 | . . . . . 1 . . 1 1 . . . 3 . . Reactor . | . . . . . . . . . . . . . . . . Propulsion 33 | 2 2 . 2 1 4 . 1 7 2 5 . 2 4 . 1 Treads 23 | 2 2 . 2 1 4 . 1 3 1 2 . 1 3 . 1 Leg 3 | . . . . . . . . 2 . 1 . . . . . Wheel 7 | . . . . . . . . 2 1 2 . 1 1 . . Hover . | . . . . . . . . . . . . . . . . Flight . | . . . . . . . . . . . . . . . . Utility 34 | 1 2 . 4 2 4 . 3 5 3 . . . 6 . 4 Device 14 | . 1 . 1 . 2 . 1 3 2 . . . 4 . . Storage 3 | 1 1 . 1 . . . . . . . . . . . . Processor 6 | . . . . . . . 1 1 . . . . 1 . 3 Hackware . | . . . . . . . . . . . . . . . . Protection 11 | . . . 2 2 2 . 1 1 1 . . . 1 . 1 Artifact . | . . . . . . . . . . . . . . . . Weapon 30 | 2 2 . 4 . 8 . 4 2 5 . . . 3 . . Energy Gun 2 | . . . . . . . . . . . . . 2 . . Energy Cannon 3 | . . . . . . . 2 . 1 . . . . . . Ballistic Gun 11 | 2 . . 1 . 5 . . 1 1 . . . 1 . . Ballistic Cannon 8 | . 2 . 2 . . . 2 . 2 . . . . . . Launcher 4 | . . . 1 . 1 . . 1 1 . . . . . . Special Weapon . | . . . . . . . . . . . . . . . . Impact Weapon . | . . . . . . . . . . . . . . . . Slashing Weapon 1 | . . . . . 1 . . . . . . . . . . Piercing Weapon . | . . . . . . . . . . . . . . . . Special Melee Weapon 1 | . . . . . 1 . . . . . . . . . . Unidentified Prototypes 3 | . . . . . . . . . . 1 . . 2 . . Parts Lost 43 | . . . 2 . 3 . 1 20 . 1 . 1 4 . 11 Power 8 | . . . 1 . 1 . 1 2 . . . 1 . . 2 Propulsion 21 | . . . 1 . 1 . . 10 . 1 . . 2 . 6 Utility 9 | . . . . . 1 . . 3 . . . . 2 . 3 Weapon 5 | . . . . . . . . 5 . . . . . . . Highest Loss Streak 15 | . . . 1 . 3 . 1 15 . 1 . 1 2 . 10 To Critical Strikes 3 | . . . . . 1 . . 2 . . . . . . . Average Backups 19 | . 6 11 19 25 9 25 24 22 22 25 24 24 24 22 22 Power 1 | . 1 2 1 2 . 1 . . . 1 1 . . 2 2 Propulsion 3 | . 1 2 3 5 2 8 7 6 3 4 4 5 3 3 2 Utility 7 | . . 2 4 6 2 10 9 8 10 12 12 12 13 11 11 Weapon 6 | . 2 4 9 11 3 6 7 8 8 7 7 7 5 5 5 Tool/Special . | . . . . . . . . . . . . . . . . Unused Backups 36 | . . . . . 8 . 1 1 4 1 . . 3 2 16 Power 7 | . . . . . 3 . 1 . . 1 . . . . 2 Propulsion 3 | . . . . . . . . 1 . . . . . . 2 Utility 15 | . . . . . 1 . . . 2 . . . 2 2 8 Weapon 9 | . . . . . 4 . . . 1 . . . 1 . 3 Tool/Special 2 | . . . . . . . . . 1 . . . . . 1 Average Slot Usage (%) 92 | . 89 100 97 99 92 100 99 84 91 88 78 91 90 93 91 Engine 6 | . 13 14 10 11 5 . 7 4 . . . 1 1 3 6 Core 4 | . . . . . 5 11 1 1 6 7 7 5 10 8 5 Treads 27 | . 26 28 31 33 33 33 35 22 5 2 . 1 24 37 36 Leg 1 | . . . . . . . . 1 5 3 14 12 1 . . Wheel 3 | . . . . . . . . 1 17 21 21 21 8 . . Device 6 | . 7 14 8 . 2 . 2 9 9 7 7 7 7 12 9 Storage 7 | . 14 14 11 11 5 11 9 7 7 7 7 7 6 6 6 Processor 5 | . . . . . . . 5 13 15 14 14 14 10 6 6 Protection 11 | . . . 12 21 23 21 19 6 6 7 7 7 6 6 7 Energy Cannon 2 | . . . . . . . . . 1 6 . 6 6 6 3 Ballistic Gun 4 | . 23 . . . 10 22 5 . 4 . . . . . 4 Ballistic Cannon 7 | . 3 28 21 22 . . 11 10 8 7 . 7 3 . . Peak Build Rating 84 | 6 8 8 22 22 35 35 40 51 57 59 59 62 75 75 84 Average Rating 42 | 4 6 8 18 21 24 30 39 44 52 54 51 57 65 74 75 On Entrance 35 | . 6 8 8 22 21 35 30 40 28 55 59 58 54 75 75 Avg Prop Armor Cover (%) 5 | . . . . . . . . 12 5 5 7 6 4 . . Naked Turns . | . . . . . . . . . . . . . . . . Heaviest Build 137 | 13 32 32 109 113 103 97 113 112 130 130 130 130 137 131 131 Greatest Support 142 | 40 40 40 60 60 60 60 80 80 36 46 36 36 139 139 142 Greatest Overweight (x) 12 | . 1 . 1 1 1 1 1 4 5 12 3 3 3 . . Average Overweight (x) 1 | . . . . 1 . 1 1 1 4 2 3 3 1 . . Largest Inventory Capacity 25 | 8 15 15 25 25 25 25 25 25 25 25 25 25 25 25 25 Average Capacity 21 | 7 13 15 20 25 14 25 25 25 25 25 25 25 25 25 25 Most Carried 25 | 5 13 12 25 25 25 25 25 25 25 25 25 25 25 25 25 Average Carried 19 | . 6 11 19 25 9 25 24 22 22 24 24 24 24 24 24 Final Capacity 25 | 8 15 15 25 25 25 25 25 25 25 25 25 25 25 25 25 Final Carried 25 | . 11 12 25 25 25 25 25 23 25 25 25 24 24 25 22 Class Distribution -------------------- 75% | Scavenger-Mutant 23% | Mutant Dominant Class ---------------- Mutant | -10/Materials Mutant | -10/Mines Scavenger-Mutant | -9/Materials Scavenger-Mutant | -9/Mines Mutant | -9/Exiles Scavenger-Mutant | -8/Mines Scavenger-Mutant | -8/Materials Scavenger-Mutant | -7/Factory Scavenger-Mutant | -7/Lower Caves Scavenger-Mutant | -7/Lower Caves Scavenger-Mutant | -7/Data Miner Scavenger-Mutant | -6/Proximity Caves Scavenger-Mutant | -6/Factory Scavenger-Mutant | -6/Lower Caves Scavenger-Mutant | -6/Zion Resources | -11 -10 -10 -9 -9 -9 -8 -8 -7 -7 -7 -7 -6 -6 -6 -6 ----------- Run | Yrd Mat Min Mat Min Exi Min Mat Fac Low Low Dat Pro Fac Low Zio Matter Collected 5729 | 236 195 215 708 337 803 10 380 880 287 205 . 173 568 37 695 Remotely . | . . . . . . . . . . . . . . . . Salvage Created 6715 | . 404 254 869 165 538 . 496 1193 181 386 . 164 1119 273 673 Parts 435 | . 29 24 67 15 71 . 23 57 3 19 . 6 47 11 63 Haulers Intercepted 10 | . 2 . 4 . . . 2 1 . . . . 1 . . Recyclers Shooed 3 | . . . 1 . . . . 1 . . . . 1 . . Parts Field Recycled . | . . . . . . . . . . . . . . . . Retrieved Matter . | . . . . . . . . . . . . . . . . Parts Self-Destructed 14 | . . . . . . . . . . 6 . 5 . 3 . Prevented . | . . . . . . . . . . . . . . . . Parts Restored . | . . . . . . . . . . . . . . . . Kills | -11 -10 -10 -9 -9 -9 -8 -8 -7 -7 -7 -7 -6 -6 -6 -6 ------- Run | Yrd Mat Min Mat Min Exi Min Mat Fac Low Low Dat Pro Fac Low Zio Combat Hostiles Destroyed 124 | . 14 9 21 7 5 . 11 25 4 7 . 4 16 . 1 Guns 23 | . 11 . . . 2 . 2 . . . . . 7 . 1 Cannons 70 | . 3 9 20 7 . . 9 13 . . . 1 8 . . AOE 27 | . . . 1 . 3 . . 10 4 7 . 2 . . . Classes Destroyed 23 | . 3 2 5 . 3 . 2 3 1 2 . 1 . . 1 Worker 6 | . . 2 1 2 . . . 1 . . . . . . . Builder 4 | . . . 1 . . . . 2 . . . . 1 . . Tunneler 3 | . . 1 . 1 . . . 1 . . . . . . . Hauler 10 | . 2 . 4 . . . 2 1 . . . . 1 . . Recycler 8 | . . . 2 . . . 1 4 . . . . 1 . . Mechanic 1 | . . . . . . . . 1 . . . . . . . Operator 1 | . . . . . . . 1 . . . . . . . . Drone 2 | . . . . . . . . . . . . 2 . . . Turret 1 | . . . . . 1 . . . . . . . . . . Watcher 9 | . . . 4 . . . 1 1 . . . . 3 . . Swarmer 54 | . 9 3 10 3 . . 4 9 4 7 . . 5 . . Grunt 35 | . 5 6 4 2 . . 6 7 . . . . 5 . . Brawler 1 | . . . 1 . . . . . . . . . . . . Sentry 12 | . . . 7 2 . . . . . . . 1 2 . . Specialist 1 | . . . . . . . . 1 . . . . . . . Hunter 9 | . . . . . . . 1 6 . . . . 2 . . Programmer 5 | . . . . . . . . 2 . . . 1 2 . . Zionite 27 | . . . . . 4 . . . . . . . . . 23 Decomposer 2 | . . . . . . . . . . 2 . . . . . Packrat 4 | . . . . . . . . . 2 2 . . . . . Samaritan 3 | . . . . . . . . . 1 . . 2 . . . Tinkerer 1 | . . . . . . . . . . . . . . . 1 Assembled 4 | . . . . . 4 . . . . . . . . . . Thug 2 | . . . . . . . . . . 1 . . . 1 . Savage 1 | . . . . . . . . . . . . . . 1 . Butcher 2 | . . . . . . . . . . 1 . . . 1 . Mutant 3 | . . . . . . . . . . 1 . . . 1 1 Best Kill Streak 8 | . 6 4 6 5 3 . 7 8 4 7 . 2 4 . 4 Combat Bots Only 7 | . 6 4 5 5 3 . 3 7 4 7 . 2 3 . 1 Max Kills in Single Turn 4 | . 1 1 2 1 3 . 1 4 3 2 . 1 1 1 1 Gunslinging . | . . . . . . . . . . . . . . . . Exploded 3 | . . . 1 . 3 . . 3 3 2 . 1 . . . Melee . | . . . . . . . . . . . . . . . . Uniques/NPCs Destroyed 4 | . . . . . 4 . . . . . . . . . . EX-HEX (-9/Exiles) EX-BIN (-9/Exiles) EX-DEC (-9/Exiles) 8R-AWN (-9/Exiles) Combat | -11 -10 -10 -9 -9 -9 -8 -8 -7 -7 -7 -7 -6 -6 -6 -6 -------- Run | Yrd Mat Min Mat Min Exi Min Mat Fac Low Low Dat Pro Fac Low Zio Hostile Shots Fired 920 | . 62 12 99 35 55 4 63 230 7 20 . 49 138 3 143 Missed 256 | . 9 3 26 9 11 2 14 66 2 6 . 15 36 . 57 Hits 664 | . 53 9 73 26 44 2 49 164 5 14 . 34 102 3 86 Melee 2 | . . . . . . . . . . . . . . . 2 Projectile 662 | . 53 9 73 26 44 2 49 164 5 14 . 34 102 3 84 Critical Strikes 29 | . . . 3 . 15 . 1 5 . . . . 3 . 2 Part Disruptions 5 | . . . . . . . . . . . . . . . 5 Actively Blocked 1 | . . . . . . . . . . . . . . . 1 Damage Taken 8944 | . 476 90 690 289 792 53 702 2493 72 216 . 274 1388 25 1384 Core 837 | . 64 22 67 19 19 . 41 392 . . . 22 80 . 111 Absorbed by Shields 318 | . . . . . . . . 45 . . . . 30 . 243 Redirected to Shielding 59 | . . . . . . . . . . . . . . . 59 Regen/Repaired (Parts) 572 | . 276 . 296 . . . . . . . . . . . . Core Remaining (%) 74 | 100 . 65 . . . 73 92 . . . . 40 . . . Volleys Fired 538 | . 38 13 67 12 41 . 42 69 12 39 . 20 87 24 74 Largest 2 | . 2 2 2 2 2 . 2 2 2 1 . 2 2 1 2 Hottest 175 | . 60 60 74 74 60 . 126 126 74 90 . 127 175 90 90 Shots Fired 925 | . 76 26 136 26 77 . 83 102 22 40 . 35 135 25 142 Gun 381 | . 60 . 10 . 76 . 30 2 8 . . . 44 10 141 Cannon 525 | . 16 26 125 26 . . 53 92 12 35 . 33 91 15 1 Launcher 19 | . . . 1 . 1 . . 8 2 5 . 2 . . . Special . | . . . . . . . . . . . . . . . . Kinetic 677 | . 76 26 135 26 76 . 80 74 20 . . 14 9 . 141 Thermal 206 | . . . . . . . . . . 35 . 19 126 25 1 Explosive 15 | . . . 1 . 1 . . 4 2 5 . 2 . . . Electromagnetic 27 | . . . . . . . 3 24 . . . . . . . Robot Hit Streak 37 | . 5 8 11 11 7 . 13 30 23 26 . 17 37 4 14 Robot Miss Streak 8 | . 4 1 8 7 3 . 3 3 . 2 . 2 4 1 8 Penetration Max 1 | . . . . . 1 . 1 1 . . . . . . . Secondary Targets 4 | . . . . . . . . . . . . . . . 4 Max Gunslinging Chain 1 | . . . . . . . . . . . . . . . 1 Shots Hit Robots 539 | . 42 17 75 18 63 . 53 69 11 19 . 19 72 9 72 Core Hits 315 | . 23 14 63 24 27 . 23 46 10 15 . 6 32 5 27 Critical Kills 17 | . . . . . 4 . . . . 1 . . 3 . 9 Critical Parts Destroyed 30 | . 1 . . . 9 . . . . . . . 1 . 19 Critical Strikes 74 | . 1 . 3 . 19 . 4 10 . 1 . 1 6 . 29 Burn 2 | . . . . . . . . . . . . . 2 . . Meltdown 3 | . . . . . . . . . . 1 . . 2 . . Destroy 48 | . 1 . . . 16 . . . . . . . 2 . 29 Blast 18 | . . . 3 . . . 4 10 . . . 1 . . . Sever 3 | . . . . . 3 . . . . . . . . . . Melee Attacks 28 | . . . . . 28 . . . . . . . . . . Impact . | . . . . . . . . . . . . . . . . Slashing 25 | . . . . . 25 . . . . . . . . . . Piercing . | . . . . . . . . . . . . . . . . Sneak Attacks 3 | . . . . . 3 . . . . . . . . . . Combat Hostiles . | . . . . . . . . . . . . . . . . Follow-up Attacks . | . . . . . . . . . . . . . . . . Damage Inflicted 15641 | . 551 332 1486 421 2156 . 1369 3254 568 1214 . 760 2165 221 1144 Guns 3705 | . 382 . 52 . 750 . 397 17 124 . . . 649 190 1144 Cannons 7442 | . 169 295 1370 402 . . 937 1656 96 577 . 544 1365 31 . Explosions 3082 | . . . 64 . 128 . 35 1581 348 637 . 216 73 . . Melee 1278 | . . . . . 1278 . . . . . . . . . . Ramming 134 | . . 37 . 19 . . . . . . . . 78 . . Kinetic 7619 | . 551 295 1422 402 750 . 1256 1196 220 . . 254 129 . 1144 Thermal 3476 | . . . . . . . 35 468 . 577 . 290 1885 221 . Explosive 2190 | . . . 64 . 128 . . 724 348 637 . 216 73 . . Electromagnetic 944 | . . . . . . . 78 866 . . . . . . . Impact . | . . . . . . . . . . . . . . . . Slashing 1278 | . . . . . 1278 . . . . . . . . . . Piercing . | . . . . . . . . . . . . . . . . Highest Corruption 11 | . . . 3 3 3 . . 1 1 1 1 1 1 1 11 Average Corruption 1 | . . . 2 3 2 . . 1 1 1 1 1 1 1 1 Corruption Purged 3 | . . . . . 3 . . . . . . . . . . Corruption Blocked . | . . . . . . . . . . . . . . . . Effects 127 | . . . 27 20 39 . . 5 2 3 . 8 12 4 7 Message Errors 35 | . . . 8 4 12 . . . . 1 . 4 4 . 2 Matter Fused 20 | . . . 3 2 9 . . . 1 . . . 2 2 1 Heat Flow Errors 18 | . . . 5 4 6 . . . . . . 1 1 . 1 Energy Discharges 13 | . . . 1 2 8 . . 1 . . . . . . 1 Data Loss (minor) 19 | . . . 3 5 2 . . 4 1 . . 2 1 1 . Data Loss (major) 6 | . . . 3 . 1 . . . . . . . 2 . . Misfires 9 | . . . 3 2 . . . . . 1 . 1 . 1 1 Alerts 3 | . . . 1 1 . . . . . 1 . . . . . Weapon Failures 4 | . . . . . 1 . . . . . . . 2 . 1 Overload Shots . | . . . . . . . . . . . . . . . . Overflow Damage 464 | . 16 . 20 . 75 . . 149 23 61 . 106 14 . . Projectiles 200 | . 16 . 17 . . . . 71 23 48 . 12 13 . . Explosions 189 | . . . 3 . . . . 78 . 13 . 94 1 . . Melee 75 | . . . . . 75 . . . . . . . . . . Knockbacks 40 | . 1 1 12 9 . . 6 8 1 . . . 2 . . Impact 2 | . . . . . . . . . . . . . 2 . . Kinetic 38 | . 1 1 12 9 . . 6 8 1 . . . . . . Secondary . | . . . . . . . . . . . . . . . . Self-Inflicted Damage 290 | . . . . . . . . 268 . 3 . 19 . . . Shots 11 | . . . . . . . . 9 . 1 . 1 . . . Rammed 15 | . . 3 . 3 . . . . . . . . 9 . . Targets Rammed 19 | . . 5 . 4 . . . . . . . . 10 . . Kicked . | . . . . . . . . . . . . . . . . Crushed 4 | . . 2 . 1 . . . . . . . . 1 . . Highest Temperature 342 | . 6 . 233 270 265 . 249 75 84 156 . 342 263 220 230 Average Temperature 68 | . 6 . 51 101 79 . 73 17 30 63 . 120 74 70 36 Received Heat Transfer 1427 | . 129 33 99 78 . . 288 390 . . . 60 267 . 83 Effects 7 | . . . . 1 4 . . . . . . 1 . 1 . Shutdowns 1 | . . . . . . . . . . . . 1 . . . Energy Bleed 4 | . . . . 1 2 . . . . . . . . 1 . Interference 2 | . . . . . 2 . . . . . . . . . . Siege Activations . | . . . . . . . . . . . . . . . . Martial Activations . | . . . . . . . . . . . . . . . . Shielding Activations . | . . . . . . . . . . . . . . . . Robots Disrupted . | . . . . . . . . . . . . . . . . Combat Hostiles . | . . . . . . . . . . . . . . . . Robots Corrupted 2 | . . . . . . . . 2 . . . . . . . Combat Hostiles 2 | . . . . . . . . 2 . . . . . . . Parts Fried 5 | . . . . . . . . 5 . . . . . . . Impact Corruptions . | . . . . . . . . . . . . . . . . Robots Melted 4 | . . . . . . . . . . 1 . 1 2 . . Combat Hostiles 2 | . . . . . . . . . . . . 1 1 . . Parts Melted 15 | . . . . . . . . . . 1 . 1 11 1 1 Heat Transferred 5650 | . . . . . . . 50 525 . 900 . 450 3379 346 . Parts Sabotaged . | . . . . . . . . . . . . . . . . Parts Stolen . | . . . . . . . . . . . . . . . . Parts Stripped . | . . . . . . . . . . . . . . . . Power Chain Reactions 6 | . . . . . . . 1 5 . . . . . . . Alert | -11 -10 -10 -9 -9 -9 -8 -8 -7 -7 -7 -7 -6 -6 -6 -6 ------- Run | Yrd Mat Min Mat Min Exi Min Mat Fac Low Low Dat Pro Fac Low Zio Maximum Alert Level 1 | . . . 1 . . . . 1 . . . . 1 . . Low Security (%) 80 | 100 100 100 28 100 . 100 100 72 . . . . 94 . . Level 1 19 | . . . 71 . . . . 27 . . . . 5 . . Level 2 . | . . . . . . . . . . . . . . . . Level 3 . | . . . . . . . . . . . . . . . . Level 4 . | . . . . . . . . . . . . . . . . Level 5 . | . . . . . . . . . . . . . . . . High Security . | . . . . . . . . . . . . . . . . Max Security . | . . . . . . . . . . . . . . . . Peak Influence 360 | . 190 112 360 165 . . 177 343 . . . . 234 . . Initial 70 | . . 17 . 70 . . . 11 . . . . . . . Average 91 | . 64 46 222 42 . . 66 101 . . . . 47 . . Influence Increases 3818 | . 428 265 788 235 . . 369 866 90 160 . 60 542 15 . Destroy 0b10 Robot/C 2420 | . 280 180 520 140 . . 220 500 80 140 . 40 320 . . Destroy 0b10 Robot/NC 225 | . 10 15 65 15 . . 25 55 . . . 10 30 . . Destroy Leader 500 | . 64 40 148 20 . . 36 74 10 20 . 10 78 . . Allied During Kill 23 | . . . 23 . . . . . . . . . . . . Successful Hack 30 | . 14 . 11 . . . 5 . . . . . . . . Disable Machine 165 | . . . . . . . 45 60 . . . . 60 . . Destroy Structure 155 | . . . 6 . . . 23 72 . . . . 54 . . Partial Spotted 15 | . . . . . . . 15 . . . . . . . . Lose Combat Pursuer 285 | . 60 30 15 60 . . . 105 . . . . . 15 . Influence Decreases 3818 | . 382 311 606 306 111 . 344 572 357 212 . 60 321 236 . Entered New Map 479 | . . 29 . 112 111 . . 14 119 11 . . . 83 . Time Decay 2920 | . 382 282 546 194 . . 221 366 238 191 . 60 287 153 . Lost Part 266 | . . . 20 . . . 10 192 . 10 . . 34 . . Lost Ally 40 | . . . 40 . . . . . . . . . . . . Purge Threat 113 | . . . . . . . 113 . . . . . . . . Squads Dispatched 16 | . 2 . 1 . . . 4 2 . . . . 7 . . Investigation 3 | . 1 . . . . . . . . . . . 2 . . Extermination 4 | . . . . . . . . 1 . . . . 3 . . Reinforcement 8 | . 1 . 1 . . . 3 1 . . . . 2 . . Assault . | . . . . . . . . . . . . . . . . Garrison 1 | . . . . . . . 1 . . . . . . . . Intercept . | . . . . . . . . . . . . . . . . Searches Triggered . | . . . . . . . . . . . . . . . . Data Miner Redirects 2 | . . . . . . . . . . . . . 2 . . Construction Impeded 2 | . . . 1 . . . . 1 . . . . . . . Haulers Reinforced 1 | . . . . . . . . . . . . . 1 . . Active Scanning Responses . | . . . . . . . . . . . . . . . . Cargo Convoy Interrupts 1 | . . . . . . . . 1 . . . . . . . Stealth | -11 -10 -10 -9 -9 -9 -8 -8 -7 -7 -7 -7 -6 -6 -6 -6 --------- Run | Yrd Mat Min Mat Min Exi Min Mat Fac Low Low Dat Pro Fac Low Zio Distress Signals 8 | . 1 . 2 . . . 2 2 . . . . 1 . . Communications Jammed 67 | . . . . . . . . 31 . . . . 36 . . Distress Signals 67 | . . . . . . . . 31 . . . . 36 . . Times Spotted 261 | . 27 10 31 7 50 1 19 52 4 7 . 3 26 1 23 Peak Tracking Total 11 | . 4 3 5 4 11 1 5 11 4 7 . 1 3 1 3 Tactical Retreats 35 | . 2 1 1 2 22 . . 4 . . . . . 1 2 Traps | -11 -10 -10 -9 -9 -9 -8 -8 -7 -7 -7 -7 -6 -6 -6 -6 ------- Run | Yrd Mat Min Mat Min Exi Min Mat Fac Low Low Dat Pro Fac Low Zio Traps Triggered 7 | . 1 . 2 . . . 1 1 . . . . 2 . . Indirectly . | . . . . . . . . . . . . . . . . Trap Hack Attempts . | . . . . . . . . . . . . . . . . Triggered . | . . . . . . . . . . . . . . . . Disarmed . | . . . . . . . . . . . . . . . . Reprogrammed . | . . . . . . . . . . . . . . . . Reused . | . . . . . . . . . . . . . . . . Traps Extracted . | . . . . . . . . . . . . . . . . Installed . | . . . . . . . . . . . . . . . . Triggered . | . . . . . . . . . . . . . . . . Machines | -11 -10 -10 -9 -9 -9 -8 -8 -7 -7 -7 -7 -6 -6 -6 -6 ---------- Run | Yrd Mat Min Mat Min Exi Min Mat Fac Low Low Dat Pro Fac Low Zio Machines Disabled 27 | . . . . . 14 . 3 4 . . . . 4 . 2 Max in Single Turn 2 | . . . . . 2 . 1 2 . . . . 1 . 1 Garrison Access 1 | . . . . . . . . 1 . . . . . . . Machines Repaired . | . . . . . . . . . . . . . . . . Machines Dismantled . | . . . . . . . . . . . . . . . . Machines Sabotaged . | . . . . . . . . . . . . . . . . Overloaded Fab Kills . | . . . . . . . . . . . . . . . . Hacking | -11 -10 -10 -9 -9 -9 -8 -8 -7 -7 -7 -7 -6 -6 -6 -6 --------- Run | Yrd Mat Min Mat Min Exi Min Mat Fac Low Low Dat Pro Fac Low Zio Machines Accessed 18 | . 1 . 3 . 2 . 3 1 1 . 4 . 3 . . Terminals 4 | . . . 1 . . . 2 . . . . . 1 . . Fabricators . | . . . . . . . . . . . . . . . . Repair Stations 4 | . 1 . 1 . . . . . . . . . 2 . . Recycling Units . | . . . . . . . . . . . . . . . . Scanalyzers 2 | . . . 1 . . . 1 . . . . . . . . Garrison Access 1 | . . . . . . . . 1 . . . . . . . Total Hacks 78 | . 13 . 15 . 2 . 10 2 1 . 28 . 7 . . Successful 63 | . 10 . 14 . 2 . 5 1 1 . 28 . 2 . . Failed 15 | . 3 . 1 . . . 5 1 . . . . 5 . . Catastrophic 2 | . . . . . . . . . . . . . 2 . . Database Lockouts . | . . . . . . . . . . . . . . . . Manual 9 | . . . 4 . 1 . 3 . . . . . 1 . . Terminals 15 | . . . 6 . . . 8 . . . . . 1 . . Fabricators . | . . . . . . . . . . . . . . . . Repair Stations 25 | . 13 . 6 . . . . . . . . . 6 . . Recycling Units . | . . . . . . . . . . . . . . . . Scanalyzers 5 | . . . 3 . . . 2 . . . . . . . . Garrison Access 2 | . . . . . . . . 2 . . . . . . . Terminal Hacks 33 | . . . 1 . 2 . 1 . 1 . 28 . . . . Record 12 | . . . . . 1 . . . . . 11 . . . . Part Schematic 8 | . . . . . . . . . . . 8 . . . . Robot Schematic 6 | . . . . . . . . . . . 6 . . . . Prototype ID Bank 3 | . . . . . . . . . . . 3 . . . . Open Door 1 | . . . . . . . . . 1 . . . . . . Unreport Threat 1 | . . . . . . . 1 . . . . . . . . Zone Layout 1 | . . . 1 . . . . . . . . . . . . Proto ID Catalog 1 | . . . . . 1 . . . . . . . . . . Fabricator Hacks . | . . . . . . . . . . . . . . . . Repair Station Hacks 18 | . 10 . 6 . . . . . . . . . 2 . . Scan Component 10 | . 5 . 3 . . . . . . . . . 2 . . Repair 8 | . 5 . 3 . . . . . . . . . . . . Recycling Unit Hacks . | . . . . . . . . . . . . . . . . Scanalyzer 5 | . . . 3 . . . 2 . . . . . . . . Retrieve Study 5 | . . . 3 . . . 2 . . . . . . . . Garrison Access Hacks 1 | . . . . . . . . 1 . . . . . . . Seal Access 1 | . . . . . . . . 1 . . . . . . . Unauthorized Hacks 6 | . . . 4 . . . 2 . . . . . . . . Terminals 6 | . . . 4 . . . 2 . . . . . . . . Assimilate 1 | . . . 1 . . . . . . . . . . . . Botnet 2 | . . . 1 . . . 1 . . . . . . . . Operators 1 | . . . 1 . . . . . . . . . . . . Skim 2 | . . . 1 . . . 1 . . . . . . . . Fabricators . | . . . . . . . . . . . . . . . . Repair Stations . | . . . . . . . . . . . . . . . . Recycling Units . | . . . . . . . . . . . . . . . . Scanalyzers . | . . . . . . . . . . . . . . . . Garrison Access . | . . . . . . . . . . . . . . . . Data Cores Recovered . | . . . . . . . . . . . . . . . . Used . | . . . . . . . . . . . . . . . . Hacking Detections 9 | . 1 . 2 . . . 3 . . . . . 3 . . Full Trace Events 3 | . 1 . . . . . 1 . . . . . 1 . . Feedback Events . | . . . . . . . . . . . . . . . . Feedback Blocked . | . . . . . . . . . . . . . . . . Robot Schematics Acquired 10 | . . . . . . . . . . . 6 . . . 4 Robots Built . | . . . . . . . . . . . . . . . . Authchips . | . . . . . . . . . . . . . . . . Time . | . . . . . . . . . . . . . . . . Total Robot Build Rating . | . . . . . . . . . . . . . . . . Part Schematics Acquired 23 | . . . . . . . . . . . 8 . . . 15 Parts Built . | . . . . . . . . . . . . . . . . Authchips . | . . . . . . . . . . . . . . . . Time . | . . . . . . . . . . . . . . . . Total Part Build Rating . | . . . . . . . . . . . . . . . . Part Studies Acquired 5 | . . . 3 . . . 2 . . . . . . . . Parts Repaired 8 | . 5 . 3 . . . . . . . . . . . . Time 208 | . 130 . 78 . . . . . . . . . . . . Parts Recycled . | . . . . . . . . . . . . . . . . Recycled Matter . | . . . . . . . . . . . . . . . . Retrieved Matter . | . . . . . . . . . . . . . . . . Retrieved Components . | . . . . . . . . . . . . . . . . Parts Scanalyzed . | . . . . . . . . . . . . . . . . Part Schematics Acquired . | . . . . . . . . . . . . . . . . Parts Damaged . | . . . . . . . . . . . . . . . . Bothacking | -11 -10 -10 -9 -9 -9 -8 -8 -7 -7 -7 -7 -6 -6 -6 -6 ------------ Run | Yrd Mat Min Mat Min Exi Min Mat Fac Low Low Dat Pro Fac Low Zio Used RIF Installer . | . . . . . . . . . . . . . . . . Robots Hacked 3 | . . . . . 3 . . . . . . . . . . Non-combat 2 | . . . . . 2 . . . . . . . . . . Combat 1 | . . . . . 1 . . . . . . . . . . Robot Hacks Applied 3 | . . . . . 3 . . . . . . . . . . parse_system 3 | . . . . . 3 . . . . . . . . . . Relay Couplers Released . | . . . . . . . . . . . . . . . . Fabnet Peak Effective % . | . . . . . . . . . . . . . . . . Robots Rewired . | . . . . . . . . . . . . . . . . Allies Hacked . | . . . . . . . . . . . . . . . . Hacks Repelled . | . . . . . . . . . . . . . . . . Allies | -11 -10 -10 -9 -9 -9 -8 -8 -7 -7 -7 -7 -6 -6 -6 -6 -------- Run | Yrd Mat Min Mat Min Exi Min Mat Fac Low Low Dat Pro Fac Low Zio Total Allies 6 | . . 5 . 1 . . . . . . . . . . . Largest Group 5 | . . 5 4 1 1 . . . . . . . . . . Highest-Rated Group 86 | . . 86 71 31 31 . . . . . . . . . . Highest-Rated Ally 31 | . . 31 31 31 31 . . . . . . . . . . Total Orders . | . . . . . . . . . . . . . . . . Ally Attacks 25 | . . . 25 . . . . . . . . . . . . Total Damage 262 | . . . 262 . . . . . . . . . . . . Kills 6 | . . . 6 . . . . . . . . . . . . Allies Corrupted . | . . . . . . . . . . . . . . . . Allies Melted 1 | . . . . . . . . . . 1 . . . . . Intel | -11 -10 -10 -9 -9 -9 -8 -8 -7 -7 -7 -7 -6 -6 -6 -6 ------- Run | Yrd Mat Min Mat Min Exi Min Mat Fac Low Low Dat Pro Fac Low Zio Active Infowar (turns) 7198 | . . . . . . . 200 757 813 875 131 605 1396 575 1846 Sensors 6472 | . . . . . . . . 529 813 875 131 600 1103 575 1846 Terrain 213 | . . . . . . . . . 213 . . . . . . Jamming 2891 | . . . . . . . 200 757 . . . 5 293 575 1061 Robot Analysis Total . | . . . . . . . . . . . . . . . . Derelict Logs Recovered 7 | . . 3 . 1 . . . . . . . 1 . . 2 Drone Launches . | . . . . . . . . . . . . . . . . Drone Recoveries . | . . . . . . . . . . . . . . . . Exploration | -11 -10 -10 -9 -9 -9 -8 -8 -7 -7 -7 -7 -6 -6 -6 -6 ------------- Run | Yrd Mat Min Mat Min Exi Min Mat Fac Low Low Dat Pro Fac Low Zio Turns Passed 17643 | 75 1026 798 1780 1188 2984 160 780 1153 813 878 131 605 1849 575 2848 Spaces Moved 8396 | 52 432 459 753 563 1436 80 316 415 496 557 93 388 827 278 1251 Core 17 | 17 . . . . . . . . . . . . . . . Treads 6368 | 35 432 459 753 563 1436 80 316 314 . . . . 451 278 1251 Legs 11 | . . . . . . . . 11 . . . . . . . Wheels 2000 | . . . . . . . . 90 496 557 93 388 376 . . Hover . | . . . . . . . . . . . . . . . . Flight . | . . . . . . . . . . . . . . . . Fastest Speed 50 | 50 160 160 160 200 160 200 200 125 131 115 131 131 117 161 161 Average Speed 168 | 124 160 160 185 200 178 200 200 188 147 129 131 131 171 161 161 Slowest Speed 280 | 160 240 160 240 200 200 200 200 280 155 260 131 131 226 161 161 Overloaded Moves . | . . . . . . . . . . . . . . . . Propulsion Burnouts . | . . . . . . . . . . . . . . . . Robots Hopped . | . . . . . . . . . . . . . . . . Potential Cave-ins . | . . . . . . . . . . . . . . . . Cave-ins Triggered . | . . . . . . . . . . . . . . . . Exploration Rate (%) 56 | 3 79 97 72 94 91 25 43 9 61 57 68 51 26 41 84 Regions Visited 15 Branch Regions 10 Pre-discovered Areas 3 | . . . . . 1 . . . . . 1 . . . 1 Known Exits Taken 9 | . . 1 . . . . 1 1 1 1 1 1 1 1 . Unknown Exits Taken 6 | 1 1 . 1 1 1 1 . . . . . . . . . Scrap Searched 19 | . . 1 . 2 . . . . 9 1 . . . 3 3 Spaces Dug 95 | . . . . . . . . 3 . 30 . 36 20 6 . Terrain Destroyed 379 | . . . 5 . 9 . 22 94 32 98 . 43 58 14 4 Melee . | . . . . . . . . . . . . . . . . Projectile 120 | . . . . . 2 . 19 20 . 15 . 11 36 14 3 AOE 258 | . . . 5 . 7 . 3 74 32 83 . 32 22 . . Terrain Rammed . | . . . . . . . . . . . . . . . . Walls Destroyed . | . . . . . . . . . . . . . . . . Machines Disabled . | . . . . . . . . . . . . . . . . Actions | -11 -10 -10 -9 -9 -9 -8 -8 -7 -7 -7 -7 -6 -6 -6 -6 --------- Run | Yrd Mat Min Mat Min Exi Min Mat Fac Low Low Dat Pro Fac Low Zio Total 10993 | 62 694 494 1001 603 1764 80 388 685 560 674 103 449 1111 382 1943 Wait 1535 | . 196 17 125 11 155 . 11 146 8 49 . 34 126 74 583 Move 8381 | 51 431 458 752 562 1435 79 315 414 495 556 92 387 826 277 1251 Hop . | . . . . . . . . . . . . . . . . Pick Up 154 | 5 18 1 26 1 36 . 5 15 16 2 4 . 12 2 11 Fast Attach 38 | 1 . . 1 2 4 . . . 3 12 . 1 11 . 3 Attach 68 | 5 7 . 6 . 8 . 3 23 7 . 2 1 3 . 3 Detach 13 | . . . . . 1 . . 7 2 3 . . . . . Swap 92 | . 3 . 14 4 15 1 9 9 6 2 1 4 15 2 7 Drop 127 | . 1 . 10 7 41 . 3 2 11 11 4 2 21 3 11 Fire 538 | . 38 13 67 12 41 . 42 69 12 39 . 20 87 24 74 Melee 28 | . . . . . 28 . . . . . . . . . . Ram . | . . . . . . . . . . . . . . . . Kick . | . . . . . . . . . . . . . . . . Crush 19 | . . 5 . 4 . . . . . . . . 10 . . Escape Stasis . | . . . . . . . . . . . . . . . . Rewire . | . . . . . . . . . . . . . . . . Trap . | . . . . . . . . . . . . . . . . Miscellaneous . | . . . . . . . . . . . . . . . . Route ------- -11/Scrapyard -10/Materials (discovered 4 exits: *Mat x2 / [*Min x2]) -10/Mines (discovered 3 exits: *Mat x2 / [*Sub]) -9/Materials (discovered 5 exits: *Mat x3 / [*Min] / [*Sto]) -9/Mines (discovered 3 exits: *Mat x2 / *Exi) -9/Exiles -8/Mines -8/Materials (discovered 2 exits: *Fac x2) -7/Factory -7/Lower Caves -7/Lower Caves (discovered 2 exits: *Fac / *Dat) -7/Data Miner -6/Proximity Caves -6/Factory (discovered 4 exits: *Fac x3 / *Low) -6/Lower Caves -6/Zion (discovered 1 exit: [*Pro]) History --------- Turn | Location | Event 6 | -11/Scrapyard | Discovered new exit (range 15) 76 | -11/Scrapyard | Entered Materials 92 | -10/Materials | Discovered new exit (range 16) 255 | -10/Materials | Discovered new exit (range 9) 305 | -10/Materials | Build established: Mutant 384 | -10/Materials | Discovered new exit (range 5) 757 | -10/Materials | Discovered new exit (range 4) 821 | -10/Materials | Repaired Lgt. Treads 848 | -10/Materials | Repaired Lgt. Treads 877 | -10/Materials | Repaired Assault Rifle 904 | -10/Materials | Repaired Ion Engine 931 | -10/Materials | Repaired Lgt. Treads 1102 | -10/Materials | Entered Mines 1105 | -10/Mines | Met a Derelict bent on vengeance 1261 | -10/Mines | Discovered new exit (range 7) 1460 | -10/Mines | Learned 2 Materials zone layouts 1481 | -10/Mines | Learned Materials emergency access door positions 1531 | -10/Mines | Identified exit to Materials 1643 | -10/Mines | Discovered exit to Materials (range 4) 1894 | -10/Mines | Assisted by bots powering up and referring to "LRC-V3" 1900 | -10/Mines | Entered Materials 1900 | -9/Materials | Accompanied by 4 allies 1900 | -9/Materials | Evolved 2 slots: Propulsion x1, Utility x1 1905 | -9/Materials | Led the pair of lost Derelicts to an unsafe place 2084 | -9/Materials | Lost 4 allies 2151 | -9/Materials | Discovered new exit (range 16) 2225 | -9/Materials | Discovered new exit (range 16) 2310 | -9/Materials | Discovered new exit (range 8) 2327 | -9/Materials | Build established: Scavenger-Mutant 2609 | -9/Materials | Repaired Lgt. Treads 2639 | -9/Materials | Repaired Lgt. Treads 2666 | -9/Materials | Repaired Lgt. Treads 2795 | -9/Materials | Discovered new exit (range 10) 3323 | -9/Materials | Discovered new exit (range 12) 3680 | -9/Materials | Entered Mines 3694 | -9/Mines | Learned location of 1 exit from Materials 3774 | -9/Mines | Found a Scrap Suit stashed away for nefarious purposes 4234 | -9/Mines | Deemed a non-threat by the Exiles lab entrance 4234 | -9/Mines | Discovered new exit (range 5) 4308 | -9/Mines | Discovered new exit (range 8) 4319 | -9/Mines | Received a Rocket Launcher from a helpful Derelict 4450 | -9/Mines | Discovered new exit (range 11) 4705 | -9/Mines | Received a Mining Laser from a helpful Derelict 4868 | -9/Mines | Entered Exiles 4868 | -9/Exiles | Accompanied by 1 ally 4917 | -9/Exiles | Met 8R-AWN 4953 | -9/Exiles | Met EX-HEX 5029 | -9/Exiles | Met EX-DEC 5041 | -9/Exiles | Learned location of Zion (-6) 5076 | -9/Exiles | Met EX-BIN 5104 | -9/Exiles | Aligned with FarCom system 5106 | -9/Exiles | Given EX-Vault access code 5152 | -9/Exiles | Opened EX-Vault 5168 | -9/Exiles | Found Longsword +1 5207 | -9/Exiles | Warned to stay clear of 0b10 Research branches 5639 | -9/Exiles | Build established: Mutant 5681 | -9/Exiles | Visited The Gauntlet 6158 | -9/Exiles | Attacked by the Exiles 6322 | -9/Exiles | Found 8R-AWN's Boregun 6324 | -9/Exiles | Lost 3 parts (1p1n1u) 6326 | -9/Exiles | Found 8R-AWN's Boregun 6593 | -9/Exiles | Destroyed EX-HEX 6628 | -9/Exiles | Destroyed EX-BIN 6694 | -9/Exiles | Destroyed EX-DEC 7029 | -9/Exiles | Destroyed 8R-AWN 7260 | -9/Exiles | Found System Purifier 7339 | -9/Exiles | Build established: Scavenger-Mutant 7352 | -9/Exiles | Found Prototype Processor 7403 | -9/Exiles | Identified Exp. Core Analyzer 7545 | -9/Exiles | Found Exp. Targeting Computer 7728 | -9/Exiles | Discovered new exit (range 14) 7852 | -9/Exiles | Entered Mines 7998 | -8/Mines | Discovered new exit (range 8) 8012 | -8/Mines | Entered Materials 8012 | -8/Materials | Evolved 2 slots: Propulsion x1, Utility x1 8013 | -8/Materials | Identified exit to Factory 8273 | -8/Materials | Garrison activated, responded to threat 8732 | -8/Materials | Discovered exit to Factory (range 5) 8792 | -8/Materials | Entered Factory 8792 | -7/Factory | Evolved 2 slots: Utility x2 9151 | -7/Factory | Discovered new exit (range 14) 9183 | -7/Factory | Identified exit to Lower Caves 9566 | -7/Factory | Cargo convoy interrupted 9566 | -7/Factory | Destroyed 7 combat bots 9642 | -7/Factory | Lost 15 parts (2p8n2u3w) 9784 | -7/Factory | Lost 3 parts (2n1w) 9784 | -7/Factory | Core integrity fell below 50% 9945 | -7/Factory | Entered Lower Caves 10741 | -7/Lower Caves | Discovered new exit (range 15) 10757 | -7/Lower Caves | Identified exit to Lower Caves 10758 | -7/Lower Caves | Entered another Lower Caves area 10764 | -7/Lower Caves | Discovered new exit (range 11) 10790 | -7/Lower Caves | Destroyed 7 combat bots 11084 | -7/Lower Caves | Encountered a Warlord checkpoint 11376 | -7/Lower Caves | Found Alien Artifact 11376 | -7/Lower Caves | Identified Core Expander 11376 | -7/Lower Caves | Installed Core Expander, added new Propulsion slot 11625 | -7/Lower Caves | Discovered new exit (range 8) 11634 | -7/Lower Caves | Identified exit to Data Miner 11636 | -7/Lower Caves | Entered Data Miner 11638 | -7/Data Miner | Discovered new exit (range 6) 11662 | -7/Data Miner | Met Data Miner 11699 | -7/Data Miner | Learned location of Section 7 (-2) 11699 | -7/Data Miner | Acquired the access code to Warlord's prototype stash 11710 | -7/Data Miner | Received God Mode back door access code from Data Miner 11738 | -7/Data Miner | Identified exit to Proximity Caves 11767 | -7/Data Miner | Entered Proximity Caves 12000 | -6/Proximity Caves | Learned 8 Factory zone layouts 12227 | -6/Proximity Caves | Attracted the attention of an 0b10 checkpoint 12354 | -6/Proximity Caves | Discovered new exit (range 14) 12371 | -6/Proximity Caves | Identified exit to Factory 12372 | -6/Proximity Caves | Entered Factory 12372 | -6/Factory | Evolved 2 slots: Power x1, Propulsion x1 12373 | -6/Factory | Identified exit to Factory 12479 | -6/Factory | Incoming investigation squad redirected 12790 | -6/Factory | Incoming investigation squad redirected 12848 | -6/Factory | Discovered new exit (range 10) 12882 | -6/Factory | Identified exit to Lower Caves 13265 | -6/Factory | Discovered exit to Factory (range 11) 13738 | -6/Factory | Spotted B-75 Beast 14221 | -6/Factory | Entered Lower Caves 14295 | -6/Lower Caves | Encountered a Warlord checkpoint 14485 | -6/Lower Caves | Found Prototype Device 14533 | -6/Lower Caves | Spotted B-75 Beast 14792 | -6/Lower Caves | A Derelict revealed a hidden shortcut to a safe place 14794 | -6/Lower Caves | Identified exit to Zion 14796 | -6/Lower Caves | Entered Zion 14917 | -6/Zion | System corruption cleaned by Quarantine Array 14991 | -6/Zion | Discovered new exit (range 14) 15331 | -6/Zion | Learned location of 1 exit from Factory 15745 | -6/Zion | Received a hallucinogenic algorithm 15822 | -6/Zion | Learned 8 Factory zone layouts 15859 | -6/Zion | Found CR-A16's Pointy Stick 15863 | -6/Zion | Identified Heart of Steel 16099 | -6/Zion | Learned location of Quarantine (-2) 16586 | -6/Zion | Found Prototype Processor 16603 | -6/Zion | Identified Exp. Armor Integrity Analyzer 16834 | -6/Zion | Attacked by Zionites 17582 | -6/Zion | NK-0LA came to Zion's defense 17610 | -6/Zion | System corruption reached 10% 17644 | -6/Zion | Lost 10 parts (2p5n3u) 17644 | -6/Zion | Self-destructed Last Messages --------------- 17611_ HV Slug penetrates Twisted Machinery. 17613_ Shield Generator destroyed. 17613_ Arm. Treads destroyed. 17614_ HV Slug penetrates NK-0LA. 17614_ NK-0LA suffers critical hit (Destroy). 17614_ Destroyed Prototype Energy Cannon. 17618_ HV Slug penetrates HY-6QQ(z). 17618_ HY-6QQ(z) destroyed. 17621_ System corrupted: Heat flow error (+252). 17622_ HV Slug penetrates Twisted Machinery. 17624_ HV Slug penetrates 0E-Y3Y(z). 17624_ 0E-Y3Y(z) destroyed. 17624_ HV Slug penetrates Twisted Machinery. 17639_ System corrupted: FCS attempts to trigger 8R-AWN's Boregun. 17639_ System corrupted: 8R-AWN's Boregun misfires. 17639_ HV Slug penetrates Twisted Machinery. Map ----- +----------------------------------------------------+ | ?????????????????????????????????????????????????? | | ?????????????????????????????????????????????????? | | ?????????????????????????????????????????????????? | | ?????????????????????????????????????????????????? | | ?????????????????????????????????????????????????? | | ?????????????????????????????????????????????????? | | ?????????????????????????????????????????????????? | | ?????????????????????????????????????????????????? | | ???????????##???"##??????####????????????????????? | | ?????????##""#"#""##"????#""##????#??????????????? | | ?????????#"""""""" "???##"""###??"####"#????????# | | ?????????#""" """ """?###" """"####"""""#?######## | | ????????##"" "###"""" """#"""""####""""#"# | | ????????#""" % """"" """" "##""""""""" | | ???????##"" """ """ ""###"" | | ???????#"" """ "" """#"" | | ???????#"" " """"" """"" | | ???????#"" " ## ## """""""""" | | ?######?#" "" ! = " # # """"""""" | | ?#""#"##""""" / " """ """###"" | | ??#""""###""" "" """ """""#" | | ??" ""#"""" = [ * " """" | | ??#! !%="%" / = # # """ | | ?##|*[= /*[ ! * = ## ## "" | | ?" **=== =%=! * "" | | ?"!/ = */! "" """""[ @ !%= | | ## ==%" #"#"""""" ! [ = =* " | | #/%"" #""" "#"##"" = !%[ " " | | ##!# ""###""""""""" ! ! "=""" "" | | ?# ####""""""" =%/ | | ?# #?#"""" " * | | ?# ##"#"" % | | ?####""" " ""#" %! "" " | | ????#"""" "%! """" """"" | | ?????""""" * """" ""#""""" | | ?????#"""" #"""" """""#""""" | | ?????###"" """"""#""""""""#"#" | | ?????#"#" """ """ """" ""##????####"# | | ?????#"""""""""" "" """ """#???????### | | #######""""""""" """ """"%* ""#?????????# | | #!!##""""""" """" "" ""#????????# | | !! " #" """" #" """#????????# | | " ! #" "" """" " "" "###????????# | | #!!! ! """ """" """ ""#?????????#### | | !!!#"# ##" """" """" ""#????????????? | | #!###" """"" """" "##????????????? | | ###?#### " """""" """""#?????????????? | | ???????### " "##"""" """"#?????????????? | | ???????## " ""##""" ""##??????????????? | | ???????#"" """#""" """"#???????????????? | +----------------------------------------------------+ Best States ------------- Heat Dissipation 64 Energy Generation 31 Energy Capacity 520 Matter Stores 300 Matter Capacity 300 Sight Range 16 Robot Scan Range 15 Terrain Scan Range 18 Terrain Scan Density 10 Jamming Range 16 Additional Mass Support 12 Armor Coverage 600 Weapon Shielding 66 Evasion (%) 50 Targeting Accuracy 12 Core Analysis 8 Armor Integrity Analysis 50 Recoil Reduction 6 Item Schematics ----------------- Combat Drone Bay | -7/Data Miner | Free Lgt. Regenerative Plating | -7/Data Miner | Free Cld. Aerolev Unit | -7/Data Miner | Free Gravity Neutralizer | -7/Data Miner | Free Antimatter Cannon | -7/Data Miner | Free Thunder Leg | -7/Data Miner | Free Imp. Transmission Jammer | -7/Data Miner | Free Disruptor Cannon | -7/Data Miner | Free Cloaking Device | -6/Zion | Archive Imp. Focal Shield | -6/Zion | Archive Enh. Optical Array | -6/Zion | Archive Imp. Arc Projector | -6/Zion | Archive Imp. Trap Scanner | -6/Zion | Archive Imp. Remote Datajack | -6/Zion | Archive Hvy. Plasma Cannon | -6/Zion | Archive Dispersion Rifle | -6/Zion | Archive Railgun | -6/Zion | Archive Adv. Sensor Array | -6/Zion | Archive Adv. Shield Generator | -6/Zion | Archive Power Amplifier | -6/Zion | Archive Lrn. Proton Cannon | -6/Zion | Archive Adv. Recoil Stabilizer | -6/Zion | Archive Hyp. Gauss Rifle | -6/Zion | Archive Robot Schematics ------------------ G-47 Trooper | -7/Data Miner | Free L-41 Fighter | -7/Data Miner | Free R-10 Processor | -7/Data Miner | Free A-15 Conveyor | -7/Data Miner | Free B-60 Warrior | -7/Data Miner | Free G-50 Soldier | -7/Data Miner | Free A-02 Transporter | -6/Zion | Archive T-07 Excavator | -6/Zion | Archive M-22 Extractor | -6/Zion | Archive H-77 Assassin | -6/Zion | Archive Fabricated ------------ Nothing Repaired ---------- Lgt. Treads | 21% | -10/Materials Lgt. Treads | 68% | -10/Materials Assault Rifle | 52% | -10/Materials Ion Engine | 23% | -10/Materials Lgt. Treads | 80% | -10/Materials Lgt. Treads | 12% | -9/Materials Lgt. Treads | 37% | -9/Materials Lgt. Treads | 38% | -9/Materials Studied --------- Lgt. Treads | -9/Materials | Hacked Mni. Grenade Launcher | -9/Materials | Hacked Datajack | -9/Materials | Hacked Shock Bomb Launcher | -8/Materials | Hacked EM Pulse Cannon | -8/Materials | Hacked Alien Tech Used ----------------- Core Expander Achievements -------------- Analysis Probe Monster My Bad Challenges ------------ None Game ------ Seed SpreadImpulseManipulator Manual? 0 Play Time 02:06:44 Cumulative 124.3 hours Start 2026.04.20 @ 01:30:03 End 2026.04.20 @ 16:14:47 Sessions 5 Manual Loads 0 Difficulty Rogue Special Mode None Game No. 92 Rogue 92 Adventurer 0 Explorer 0 Win Type - Total 1 Types 0/0/0/1/0/0/0/0/0/0 Lore% 47 Gallery% 53 Achievement% 51 Wizard Run 0 Options --------- Layout 2 ASCII 0 Keyboard 0 Movement Mouse Keybinds 0 Fullscreen 1 Font 48/Smallcaps Map View 50x44 Zoom Use 0% Tactical HUD 1 Map Filters NONE Filters NONE Steam 1 RUN: 4426483e-9af7-447d-a04d-5fe9f5816682